bitfinex/quotes_SOLUSD_20220306
["timestamp","ask_amount","ask_price","bid_price","bid_amount"]
[1646573067980,23.681,87.779,87.702,23.889]
[1646573068788,6.23566313,87.778,87.702,23.889]
[1646573068981,22.5654,87.79,87.711,114.7]
[1646573069180,23.4313,87.805,87.711,114.7]
[1646573069484,5.95344396,87.835,87.717,114.7]
[1646573069687,23.4313,87.847,87.73,68.72]
[1646573069883,23.4313,87.847,87.737,114.7]
[1646573070084,23.4313,87.847,87.761,114.7]
[1646573070281,23.4313,87.847,87.762,51.09346781]
[1646573070883,23.4313,87.847,87.763,25.67003526]
[1646573071284,23.4313,87.847,87.764,2.83613526]
[1646573071494,23.4313,87.847,87.764,117.53613526]
[1646573071884,23.4313,87.847,87.765,2.83613526]
[1646573072083,23.4313,87.847,87.78,17.0929]
[1646573072307,23.4313,87.847,87.781,61.61589812]
[1646573073405,56.35435265,87.839,87.781,61.61589812]
[1646573079611,23.4313,87.847,87.781,61.61589812]
[1646573080512,54.2915552,87.846,87.781,61.61589812]
[1646573080712,17.0965,87.84,87.781,61.61589812]
[1646573084424,131.7965,87.84,87.781,61.61589812]
[1646573084618,0.39456504,87.839,87.781,61.61589812]
[1646573084923,17.1019,87.82,87.766,24.4193]
[1646573085116,0.43904044,87.819,87.766,24.4193]
[1646573085519,5.09282758,87.819,87.73,17.1019]
[1646573085721,114.7,87.817,87.743,53.05935857]
[1646573086118,131.8028,87.81,87.743,53.05935857]
[1646573086318,17.1028,87.81,87.743,53.05935857]
[1646573089419,74.01373583,87.818,87.743,53.05935857]
[1646573089821,74.01373583,87.818,87.744,24.5242]
[1646573092122,17.1026,87.81,87.744,24.5242]
[1646573092723,22.5623,87.818,87.744,24.5242]
[1646573093723,69.68942216,87.818,87.744,24.5242]
[1646573094835,17.1024,87.81,87.744,24.5242]
[1646573095631,131.8024,87.81,87.744,24.5242]
[1646573099262,131.8024,87.81,87.744,24.3165178]
[1646573099759,17.1024,87.81,87.744,24.3165178]
[1646573103163,0.53410249,87.807,87.731,23.9757]
[1646573103365,4.15521451,87.788,87.731,23.9757]
[1646573103564,0.53410249,87.787,87.731,23.9757]
[1646573104065,117.34234691,87.786,87.712,60.48747225]
[1646573104265,0.53410249,87.785,87.712,60.48747225]
[1646573104967,114.7,87.779,87.712,60.48747225]
[1646573105165,4.52771346,87.778,87.712,60.48747225]
[1646573105765,0.53410249,87.777,87.712,60.48747225]
[1646573106166,60.77472423,87.769,87.712,60.48747225]
[1646573106364,5.11335633,87.768,87.712,60.48747225]
[1646573106566,0.53410249,87.767,87.712,60.48747225]
[1646573106766,5.11335633,87.768,87.712,60.48747225]
[1646573107169,17.1149,87.76,87.712,60.48747225]
[1646573109467,0.514,106.12,87.713,2.83613526]
[1646573109468,3.10199894,87.783,87.713,2.83613526]
[1646573109767,3.10199894,87.785,87.713,2.83613526]
[1646573110169,23.6951,87.786,87.713,2.83613526]
[1646573110170,26.79709894,87.786,87.713,2.83613526]
[1646573110470,23.6951,87.786,87.713,2.83613526]
[1646573110870,55.50074932,87.798,87.713,2.83613526]
[1646573111069,55.50074932,87.798,87.713,26.77893526]
[1646573111270,17.1061,87.8,87.714,114.7]
[1646573111471,17.1061,87.8,87.714,117.53613526]
[1646573111669,17.1061,87.8,87.713,23.9428]
[1646573111871,17.1061,87.8,87.715,2.83613526]
[1646573112073,17.1061,87.8,87.72,17.1057]
[1646573112271,17.1064,87.79,87.72,17.1057]
[1646573112473,17.1064,87.79,87.713,23.9428]
[1646573112474,17.1064,87.79,87.721,2.83613526]
[1646573112672,63.41830735,87.799,87.721,2.83613526]
[1646573112874,63.41830735,87.799,87.722,23.7311]
[1646573113074,1.55005424,87.778,87.722,23.7311]
[1646573113272,1.55005424,87.777,87.723,2.83613526]
[1646573113673,1.55005424,87.774,87.723,2.83613526]
[1646573114376,1.55005424,87.773,87.722,23.7311]
[1646573114574,1.55005424,87.773,87.723,5.698]
[1646573114778,3.10199894,87.796,87.723,5.698]
[1646573114779,55.9093578,87.771,87.723,5.698]
[1646573114974,57.45941204,87.771,87.723,5.698]
[1646573115174,1.55005424,87.767,87.723,5.698]
[1646573115376,1.55005424,87.764,87.723,5.698]
[1646573115581,1.55005424,87.763,87.722,23.7311]
[1646573115776,1.55005424,87.762,87.722,23.7311]
[1646573116076,1.55005424,87.76,87.722,23.7311]
[1646573116277,1.55005424,87.76,87.713,23.9428]
[1646573116474,1.55005424,87.759,87.713,23.9428]
[1646573116675,1.55005424,87.758,87.713,23.9428]
[1646573116876,63.87330267,87.757,87.713,23.9428]
[1646573117776,65.42335691,87.757,87.713,23.9428]
[1646573117975,1.55005424,87.754,87.713,23.9428]
[1646573118177,1.55005424,87.752,87.713,23.9428]
[1646573119075,1.55005424,87.753,87.713,23.9428]
[1646573119277,1.55005424,87.752,87.713,23.9428]
[1646573119677,1.55005424,87.752,87.712,60.48747225]
[1646573119978,63.87330267,87.757,87.692,24.9897]
[1646573119979,18.66405424,87.75,87.692,24.9897]
[1646573120177,1.55005424,87.745,87.692,24.9897]
[1646573120376,1.55005424,87.744,87.692,24.9897]
[1646573120780,1.55005424,87.743,87.692,24.9897]
[1646573120979,46.53667119,87.742,87.693,60.24174969]
[1646573122080,48.08672543,87.742,87.693,60.24174969]
[1646573122481,1.55005424,87.742,87.693,60.24174969]
[1646573122682,1.55005424,87.741,87.693,60.24174969]
[1646573122880,7.49513458,87.766,87.693,60.24174969]
[1646573122881,1.55005424,87.742,87.693,60.24174969]
[1646573123082,1.55005424,87.743,87.693,60.24174969]
[1646573123481,1.55005424,87.744,87.693,60.24174969]
[1646573123681,1.55005424,87.745,87.693,60.24174969]
[1646573124283,1.55005424,87.745,87.694,5.7]
[1646573125286,1.55005424,87.744,87.693,60.24174969]
[1646573125681,27.64969894,87.769,87.693,60.24174969]
[1646573125682,1.55005424,87.743,87.693,60.24174969]
[1646573126583,51.97282704,87.742,87.693,60.24174969]
[1646573126783,1.55005424,87.738,87.693,60.24174969]
[1646573126988,17.1186,87.73,87.693,60.24174969]
[1646573127785,1.55005424,87.733,87.693,60.24174969]
[1646573128686,1.55005424,87.731,87.693,60.24174969]
[1646573129486,17.116,87.74,87.693,60.24174969]
[1646573129487,1.55005424,87.732,87.693,60.24174969]
[1646573129690,1.55005424,87.731,87.693,60.24174969]
[1646573130286,1.55005424,87.732,87.693,60.24174969]
[1646573130586,17.118,87.73,87.693,60.24174969]
[1646573133414,18.66805424,87.73,87.693,60.24174969]
[1646573135115,133.36805424,87.73,87.668,5.7]
[1646573135317,131.8267,87.71,87.634,30.3319]
[1646573135516,0.6767343,87.706,87.634,30.3319]
[1646573135717,1.55005424,87.701,87.634,30.3319]
[1646573135916,1.55005424,87.699,87.634,30.3319]
[1646573136117,167.2082587,87.7,87.635,62.38991949]
[1646573136318,52.5082587,87.7,87.635,62.38991949]
[1646573136716,52.5082587,87.7,87.635,68.09291949]
[1646573137117,52.5082587,87.7,87.635,62.38991949]
[1646573137518,167.2082587,87.7,87.635,62.38991949]
[1646573137719,0.45938192,87.698,87.635,62.38991949]
[1646573137919,0.58606829,87.696,87.602,54.5884]
[1646573138118,0.58606829,87.691,87.602,54.5884]
[1646573138318,1.55005424,87.687,87.602,57.42453526]
[1646573138618,0.58606829,87.685,87.603,2.83613526]
[1646573138821,64.44695169,87.679,87.605,53.62553918]
[1646573139020,114.7,87.678,87.605,53.62553918]
[1646573139618,0.58606829,87.677,87.605,53.62553918]
[1646573140520,4.2829331,87.669,87.605,53.62553918]
[1646573140918,63.8608834,87.679,87.605,53.62553918]
[1646573141319,6.79154831,87.687,87.605,53.62553918]
[1646573141523,5.74155613,87.687,87.606,2.83613526]
[1646573141831,1.55005424,87.688,87.61,17.1274]
[1646573142018,23.7297,87.689,87.61,17.1274]
[1646573142219,23.7297,87.689,87.611,2.83613526]
[1646573142422,25.89805424,87.698,87.611,138.37439146]
[1646573142619,24.348,87.698,87.611,117.53613526]
[1646573142820,24.348,87.698,87.612,171.34013049]
[1646573143021,24.348,87.698,87.63,17.1199]
[1646573143426,75.37197615,87.698,87.631,54.34257705]
[1646573145124,114.7,87.69,87.631,54.34257705]
[1646573145324,131.826,87.69,87.631,54.34257705]
[1646573145925,17.126,87.69,87.631,54.34257705]
[1646573146327,131.826,87.69,87.631,54.34257705]
[1646573146526,17.126,87.69,87.631,54.34257705]
[1646573149236,17.126,87.69,87.613,23.9433]
[1646573149531,5.08784591,87.669,87.613,23.9433]
[1646573149930,1.55005424,87.687,87.613,23.9433]
[1646573150135,1.55005424,87.688,87.614,60.05897924]
[1646573150431,1.55005424,87.687,87.614,60.05897924]
[1646573150931,7.07616054,87.689,87.614,60.05897924]
[1646573151132,17.128,87.68,87.614,60.05897924]
[1646573151331,62.71787534,87.68,87.614,60.05897924]
[1646573153435,17.128,87.68,87.614,60.05897924]
[1646573154437,55.64437041,87.679,87.614,60.05897924]
[1646573154837,5.88460421,87.669,87.614,60.05897924]
[1646573155439,17.13,87.67,87.614,60.05897924]
[1646573156139,5.80721004,87.678,87.614,60.05897924]
[1646573158242,17.1301,87.67,87.614,60.05897924]
[1646573159547,1.55005424,87.68,87.614,60.05897924]
[1646573160044,1.55005424,87.683,87.614,83.7333707]
[1646573160343,1.55005424,87.687,87.614,83.7333707]
[1646573160843,1.55005424,87.688,87.62,17.1255]
[1646573161045,59.20690906,87.682,87.614,60.05897924]
[1646573161242,114.1,87.681,87.614,60.05897924]
[1646573161443,1.55005424,87.679,87.614,60.05897924]
[1646573161944,17.1287,87.68,87.614,60.05897924]
[1646573163248,1.55005424,87.679,87.614,60.05897924]
[1646573163449,1.55005424,87.676,87.614,60.05897924]
[1646573163748,17.1299,87.67,87.614,60.05897924]
[1646573163948,1.55005424,87.666,87.614,60.05897924]
[1646573165350,1.55005424,87.665,87.614,60.05897924]
[1646573165951,1.55005424,87.66,87.614,60.05897924]
[1646573166973,1.55005424,87.661,87.614,60.05897924]
[1646573167377,1.55005424,87.66,87.614,60.05897924]
[1646573168076,1.55005424,87.659,87.614,60.05897924]
[1646573168483,1.55005424,87.659,87.62,17.1253]
[1646573168723,1.55005424,87.661,87.62,17.1253]
[1646573168876,1.55005424,87.673,87.621,2.83613526]
[1646573169075,26.60929894,87.697,87.621,2.83613526]
[1646573169076,1.55005424,87.676,87.621,2.83613526]
[1646573169276,1.55005424,87.675,87.621,2.83613526]
[1646573169677,1.55005424,87.675,87.631,60.88960474]
[1646573169881,1.55005424,87.676,87.631,60.88960474]
[1646573170075,1.55005424,87.676,87.631,63.72574]
[1646573170275,1.55005424,87.676,87.632,5.704]
[1646573170677,1.55005424,87.677,87.632,5.704]
[1646573170877,1.55005424,87.677,87.631,60.88960474]
[1646573171079,1.55005424,87.668,87.631,60.88960474]
[1646573171279,5.4151458,87.691,87.631,60.88960474]
[1646573171280,1.55005424,87.666,87.631,60.88960474]
[1646573171580,1.55005424,87.674,87.631,60.88960474]
[1646573172780,1.55005424,87.675,87.631,60.88960474]
[1646573172979,1.55005424,87.674,87.631,60.88960474]
[1646573173381,1.55005424,87.675,87.631,60.88960474]
[1646573173783,1.55005424,87.675,87.64,17.1215]
[1646573174186,1.55005424,87.68,87.641,114.1]
[1646573174391,1.55005424,87.69,87.641,116.93613526]
[1646573174587,1.55005424,87.706,87.641,116.93613526]
[1646573174787,1.55005424,87.707,87.642,122.63813526]
[1646573174986,1.55005424,87.708,87.65,17.1177]
[1646573175184,1.55005424,87.705,87.651,5.702]
[1646573175384,1.55005424,87.705,87.652,23.354]
[1646573175785,1.55005424,87.705,87.652,31.89213526]
[1646573175984,1.55005424,87.707,87.652,29.056]
[1646573176186,1.55005424,87.707,87.66,17.1167]
[1646573176486,1.55005424,87.715,87.661,119.802]
[1646573176685,1.55005424,87.715,87.661,122.63813526]
[1646573176885,1.55005424,87.715,87.662,2.83613526]
[1646573177085,1.55005424,87.715,87.663,5.702]
[1646573177286,1.55005424,87.715,87.664,73.1690955]
[1646573177490,59.8154554,87.743,87.665,5.7]
[1646573177491,1.55005424,87.72,87.665,5.7]
[1646573177786,1.55005424,87.72,87.665,8.53613526]
[1646573177986,1.55005424,87.722,87.666,2.83613526]
[1646573178185,1.55005424,87.722,87.67,17.114]
[1646573178385,1.55005424,87.722,87.671,5.7]
[1646573179794,1.55005424,87.722,87.68,17.1129]
[1646573179991,24.5306,87.764,87.681,119.8]
[1646573179992,1.55005424,87.734,87.681,119.8]
[1646573180188,1.55005424,87.734,87.681,146.56333526]
[1646573180389,1.55005424,87.745,87.681,164.5654562]
[1646573180589,1.55005424,87.755,87.682,2.83613526]
[1646573180789,1.55005424,87.755,87.683,114.1]
[1646573180991,1.55005424,87.755,87.691,64.16308527]
[1646573181190,1.55005424,87.754,87.691,64.16308527]
[1646573181388,1.55005424,87.754,87.692,24.0802]
[1646573181590,1.55005424,87.755,87.692,26.91633526]
[1646573181790,1.55005424,87.755,87.693,2.83613526]
[1646573181990,1.55005424,87.754,87.693,2.83613526]
[1646573182189,1.55005424,87.754,87.7,17.1087]
[1646573182390,1.55005424,87.75,87.692,24.0802]
[1646573182592,1.55005424,87.749,87.692,24.0802]
[1646573183290,1.55005424,87.748,87.692,24.0802]
[1646573183491,1.55005424,87.75,87.692,24.0802]
[1646573183690,1.55005424,87.751,87.692,24.0802]
[1646573186194,1.55005424,87.752,87.692,24.0802]
[1646573186793,1.55005424,87.751,87.692,24.0802]
[1646573187294,1.55005424,87.752,87.692,24.0802]
[1646573188195,1.55005424,87.751,87.692,24.0802]
[1646573188596,1.55005424,87.752,87.692,24.0802]
[1646573189901,1.55005424,87.751,87.692,24.0802]
[1646573190500,1.55005424,87.753,87.692,24.0802]
[1646573190700,1.55005424,87.752,87.692,24.0802]
[1646573191302,1.55005424,87.752,87.7,17.1092]
[1646573191501,1.55005424,87.753,87.7,17.1092]
[1646573192103,63.11695913,87.752,87.692,24.0802]
[1646573192403,64.66701337,87.752,87.692,24.0802]
[1646573192605,1.55005424,87.749,87.692,24.0802]
[1646573193804,1.55005424,87.75,87.692,24.0802]
[1646573194909,1.55005424,87.749,87.692,24.0802]
[1646573195104,1.55005424,87.747,87.692,24.0802]
[1646573195306,1.55005424,87.746,87.692,24.0802]
[1646573195906,1.55005424,87.745,87.7,17.1085]
[1646573196106,1.55005424,87.751,87.7,17.1085]
[1646573196306,1.55005424,87.76,87.7,17.1085]
[1646573196506,1.55005424,87.76,87.701,2.83613526]
[1646573196705,1.55005424,87.761,87.701,2.83613526]
[1646573196906,1.55005424,87.761,87.693,24.8047]
[1646573197110,1.55005424,87.757,87.693,24.8047]
[1646573197310,1.55005424,87.761,87.693,24.8047]
[1646573197711,50.65829883,87.762,87.693,24.8047]
[1646573197914,50.65829883,87.762,87.694,2.83613526]
[1646573198310,50.65829883,87.762,87.7,17.1096]
[1646573198714,1.55005424,87.759,87.7,17.1096]
[1646573198909,1.55005424,87.758,87.7,17.1096]
[1646573199109,1.55005424,87.756,87.7,17.1096]
[1646573199512,1.55005424,87.755,87.7,17.1096]
[1646573199926,1.55005424,87.754,87.7,17.1096]
[1646573200529,1.55005424,87.755,87.7,17.1096]
[1646573200926,1.55005424,87.758,87.7,17.1096]
[1646573201126,1.55005424,87.757,87.7,17.1096]
[1646573201328,1.55005424,87.757,87.693,24.8047]
[1646573201731,1.55005424,87.733,87.693,24.8047]
[1646573203433,1.55005424,87.728,87.693,24.8047]
[1646573203633,9.38005424,87.728,87.693,24.8047]
[1646573203831,1.55005424,87.723,87.693,24.8047]
[1646573204032,1.55005424,87.722,87.692,24.0802]
[1646573204541,1.55005424,87.716,87.692,24.0802]
[1646573204734,1.55005424,87.713,87.692,24.0802]
[1646573204937,1.55005424,87.714,87.681,5.7]
[1646573205335,1.55005424,87.705,87.681,5.7]
[1646573205537,117.20199894,87.73,87.681,5.7]
[1646573205538,1.55005424,87.704,87.681,5.7]
[1646573205733,1.55005424,87.7,87.681,5.7]
[1646573205935,57.56428635,87.702,87.681,5.7]
[1646573206339,1.55005424,87.699,87.681,5.7]
[1646573206539,0.48964935,87.698,87.612,114.1]
[1646573206735,1.55005424,87.689,87.568,3.05590679]
[1646573206935,2.03970359,87.688,87.612,23.67439146]
[1646573207135,1.55005424,87.688,87.612,23.67439146]
[1646573207437,17.1259,87.69,87.613,23.67439146]
[1646573207636,18.67595424,87.69,87.613,23.67439146]
[1646573207936,1.55005424,87.689,87.613,20.8382562]
[1646573208145,1.55005424,87.687,87.613,20.8382562]
[1646573208343,1.55005424,87.671,87.6,20.8382562]
[1646573208539,1.55005424,87.655,87.6,20.8382562]
[1646573208737,1.55005424,87.653,87.6,20.8382562]
[1646573208937,1.55005424,87.652,87.556,49.2991]
[1646573209135,54.9844156,87.651,87.559,18.8934562]
[1646573209336,54.9844156,87.651,87.571,63.76186891]
[1646573209537,114.1,87.65,87.571,82.65532511]
[1646573209735,114.1,87.65,87.571,101.94827478]
[1646573210136,17.1363,87.65,87.58,17.1323]
[1646573210336,1.55005424,87.653,87.58,17.1323]
[1646573210543,1.55005424,87.67,87.581,2.83613526]
[1646573211037,1.55005424,87.671,87.582,18.8934562]
[1646573211238,1.55005424,87.671,87.59,17.1308]
[1646573211439,50.02665424,87.674,87.59,17.1308]
[1646573211641,48.4766,87.674,87.59,17.1308]
[1646573211843,48.4766,87.674,87.591,2.83613526]
[1646573212244,63.26258983,87.673,87.591,2.83613526]
[1646573212640,17.1296,87.67,87.601,51.73165256]
[1646573213442,63.26258983,87.673,87.601,51.73165256]
[1646573213643,1.55005424,87.678,87.601,51.73165256]
[1646573213842,1.55005424,87.678,87.61,17.1268]
[1646573214041,1.55005424,87.678,87.602,2.83613526]
[1646573214242,1.55005424,87.683,87.602,2.83613526]
[1646573214645,52.72832549,87.682,87.601,51.73165256]
[1646573214842,114.1,87.679,87.601,51.73165256]
[1646573215043,1.55005424,87.678,87.601,51.73165256]
[1646573215643,1.55005424,87.673,87.601,51.73165256]
[1646573216047,4.77783071,87.669,87.601,51.73165256]
[1646573217645,6.5194692,87.68,87.601,51.73165256]
[1646573217844,114.1,87.679,87.601,51.73165256]
[1646573218246,17.1318,87.66,87.601,51.73165256]
[1646573220347,17.1296,87.67,87.601,51.73165256]
[1646573221548,114.1,87.669,87.601,51.73165256]
[1646573221750,59.5749311,87.649,87.601,51.73165256]
[1646573222352,114.1,87.648,87.577,2.83613526]
[1646573222548,0.45581697,87.646,87.578,5.706]
[1646573222748,0.45581697,87.646,87.564,5.706]
[1646573223346,0.45581697,87.646,87.565,52.1542951]
[1646573223547,17.1358,87.64,87.566,5.707]
[1646573224349,5.92572396,87.638,87.566,5.707]
[1646573225150,21.43461475,87.64,87.566,5.707]
[1646573227854,21.43461475,87.64,87.565,52.1542951]
[1646573228054,114.1,87.639,87.565,52.1542951]
[1646573228456,17.1377,87.63,87.565,52.1542951]
[1646573230256,4.29881475,87.64,87.565,52.1542951]
[1646573230257,24.7768,87.648,87.57,17.134]
[1646573231256,114.1,87.647,87.57,17.134]
[1646573231466,1.55005424,87.644,87.57,17.134]
[1646573231660,1.55005424,87.644,87.566,5.707]
[1646573231661,5.53208733,87.638,87.566,5.707]
[1646573232058,17.1355,87.64,87.566,5.707]
[1646573234059,33.866,87.64,87.566,5.707]
[1646573234269,1.55005424,87.637,87.566,5.707]
[1646573234460,1.55005424,87.637,87.567,24.5317]
[1646573234666,1.55005424,87.637,87.568,5.707]
[1646573235061,1.55005424,87.627,87.568,5.707]
[1646573235463,1.55005424,87.627,87.57,17.1345]
[1646573235663,1.55005424,87.628,87.571,5.707]
[1646573236663,1.55005424,87.629,87.571,5.707]
[1646573237462,60.25201763,87.622,87.568,5.707]
[1646573237672,1.55005424,87.616,87.567,24.5317]
[1646573237861,58.70196339,87.622,87.567,24.5317]
[1646573237862,1.55005424,87.617,87.567,24.5317]
[1646573238062,1.55005424,87.616,87.567,24.5317]
[1646573239064,1.55005424,87.615,87.567,24.5317]
[1646573239265,10.29005424,87.615,87.567,24.5317]
[1646573239666,114.1,87.614,87.565,52.1542951]
[1646573239866,115.65005424,87.614,87.565,52.1542951]
[1646573240069,1.55005424,87.61,87.565,52.1542951]
[1646573241169,1.55005424,87.611,87.565,52.1542951]
[1646573242169,1.55005424,87.612,87.565,52.1542951]
[1646573243871,1.55005424,87.612,87.565,52.12320782]
[1646573244068,1.55005424,87.611,87.565,52.12320782]
[1646573244269,1.55005424,87.609,87.565,52.12320782]
[1646573244868,1.55005424,87.61,87.565,52.12320782]
[1646573245469,1.55005424,87.611,87.565,52.12320782]
[1646573246671,1.55005424,87.612,87.565,52.12320782]
[1646573247075,1.55005424,87.61,87.565,52.12320782]
[1646573247471,1.55005424,87.61,87.57,17.1337]
[1646573247672,16.7305,87.64,87.571,5.708]
[1646573247673,1.55005424,87.615,87.571,5.708]
[1646573247872,1.55005424,87.615,87.57,17.1337]
[1646573248073,1.55005424,87.616,87.566,24.1409]
[1646573248673,1.55005424,87.616,87.567,5.708]
[1646573248872,1.55005424,87.615,87.567,5.708]
[1646573249277,1.55005424,87.61,87.567,5.708]
[1646573250574,3.10199894,87.639,87.568,114.1]
[1646573250775,3.10199894,87.652,87.57,114.1]
[1646573250975,3.10199894,87.653,87.57,114.1]
[1646573251180,3.10199894,87.655,87.572,114.1]
[1646573251375,3.10199894,87.655,87.59,17.1284]
[1646573251576,3.10199894,87.656,87.591,5.706]
[1646573251778,3.10199894,87.658,87.592,23.1543]
[1646573251976,3.10199894,87.658,87.593,5.706]
[1646573252178,3.10199894,87.655,87.593,5.706]
[1646573252378,3.10199894,87.655,87.594,48.08012841]
[1646573252576,3.10199894,87.655,87.595,5.706]
[1646573252777,3.10199894,87.653,87.595,5.706]
[1646573253476,6.24326684,87.653,87.595,5.706]
[1646573253676,3.10199894,87.654,87.595,5.706]
[1646573253877,6.24326684,87.652,87.595,5.706]
[1646573254077,3.10199894,87.654,87.594,48.08012841]
[1646573255181,3.10199894,87.655,87.594,48.08012841]
[1646573255379,3.10199894,87.656,87.594,48.08012841]
[1646573256103,3.10199894,87.658,87.594,48.08012841]
[1646573256302,3.10199894,87.657,87.594,48.08012841]
[1646573256704,3.10199894,87.657,87.595,5.706]
[1646573257103,3.10199894,87.656,87.595,5.706]
[1646573257507,6.24326684,87.659,87.595,5.706]
[1646573257907,3.10199894,87.662,87.595,5.706]
[1646573258406,6.24326684,87.658,87.6,17.1284]
[1646573258607,3.10199894,87.671,87.602,114.1]
[1646573258807,3.10199894,87.678,87.603,5.705]
[1646573259008,3.10199894,87.68,87.604,24.1545]
[1646573259207,3.10199894,87.681,87.605,5.705]
[1646573259607,6.24326684,87.694,87.605,5.705]
[1646573259608,3.10199894,87.682,87.605,8.54113526]
[1646573259809,6.24326684,87.68,87.61,17.1233]
[1646573260010,6.24326684,87.681,87.612,62.852563]
[1646573260209,3.10199894,87.688,87.613,5.704]
[1646573260509,6.24143326,87.687,87.613,5.704]
[1646573260909,6.24143326,87.686,87.613,5.704]
[1646573261113,6.24143326,87.686,87.62,17.1246]
[1646573261310,6.24143326,87.685,87.621,5.704]
[1646573261709,6.24143326,87.687,87.621,5.704]
[1646573261910,6.24143326,87.684,87.613,5.704]
[1646573262111,3.10199894,87.686,87.613,5.704]
[1646573262312,6.24143326,87.689,87.613,5.704]
[1646573262516,49.70710612,87.688,87.613,5.704]
[1646573262713,6.24143326,87.687,87.613,5.704]
[1646573263114,6.24143326,87.687,87.62,17.1248]
[1646573263313,6.24143326,87.687,87.621,5.704]
[1646573263514,17.1276,87.68,87.621,5.704]
[1646573263714,17.1276,87.68,87.612,62.852563]
[1646573264320,6.2419613,87.679,87.612,62.852563]
[1646573266017,6.2419613,87.679,87.613,5.704]
[1646573266218,17.1276,87.68,87.613,5.704]
[1646573266617,3.10199894,87.688,87.613,5.704]
[1646573266818,6.24161876,87.689,87.62,17.1248]
[1646573267019,6.24161876,87.689,87.621,5.704]
[1646573267220,9.3436177,87.694,87.622,24.5913]
[1646573267421,6.24161876,87.688,87.623,5.703]
[1646573267627,61.95401064,87.688,87.623,5.703]
[1646573267822,27.44239894,87.695,87.623,5.703]
[1646573268022,6.24144599,87.694,87.63,17.123]
[1646573268722,6.24144599,87.694,87.631,58.53281105]
[1646573269821,6.24144599,87.694,87.632,5.703]
[1646573270522,17.1259,87.69,87.631,58.53281105]
[1646573271024,6.24144599,87.689,87.631,58.53281105]
[1646573271221,114.1,87.688,87.631,58.53281105]
[1646573271523,3.10199894,87.685,87.631,58.53281105]
[1646573271721,114.1,87.684,87.631,58.53281105]
[1646573271923,114.1,87.682,87.631,58.53281105]
[1646573272122,63.10062447,87.679,87.631,58.53281105]
[1646573272325,114.1,87.678,87.631,58.53281105]
[1646573272524,120.34144599,87.678,87.631,58.53281105]
[1646573272725,4.33867192,87.676,87.631,58.53281105]
[1646573273028,6.24144599,87.675,87.631,58.53281105]
[1646573273227,17.1307,87.67,87.631,58.53281105]
[1646573274827,3.10199894,87.678,87.631,58.53281105]
[1646573275028,3.10199894,87.687,87.631,58.53281105]
[1646573275228,3.10199894,87.689,87.631,58.53281105]
[1646573276230,9.343752,87.688,87.631,58.53281105]
[1646573276629,3.10199894,87.69,87.631,58.53281105]
[1646573276829,6.24175306,87.687,87.631,58.53281105]
[1646573277030,3.10199894,87.688,87.631,58.53281105]
[1646573277529,3.10199894,87.687,87.631,58.53281105]
[1646573277929,3.10199894,87.688,87.631,58.53281105]
[1646573278133,6.24175306,87.686,87.631,58.53281105]
[1646573278330,4.8557663,87.705,87.631,58.53281105]
[1646573278331,6.24175306,87.687,87.631,58.53281105]
[1646573278531,6.24175306,87.685,87.631,58.53281105]
[1646573278732,3.10199894,87.691,87.631,58.53281105]
[1646573279538,3.10199894,87.691,87.632,5.703]
[1646573279937,9.343752,87.694,87.632,5.703]
[1646573280135,6.24175306,87.694,87.632,5.703]
[1646573280337,6.24175306,87.694,87.64,17.1209]
[1646573280536,3.10199894,87.691,87.641,5.703]
[1646573281340,3.10199894,87.69,87.634,5.703]
[1646573281543,9.343752,87.69,87.633,24.7419]
[1646573281739,3.10199894,87.69,87.633,24.7419]
[1646573282564,3.10199894,87.688,87.634,5.703]
[1646573282963,3.10199894,87.682,87.634,5.703]
[1646573283365,3.10199894,87.679,87.634,5.703]
[1646573284163,3.10199894,87.678,87.634,5.703]
[1646573286067,3.10199894,87.675,87.634,5.703]
[1646573287367,3.10199894,87.675,87.631,58.53281105]
[1646573287567,3.10199894,87.672,87.631,58.53281105]
[1646573287771,3.10199894,87.671,87.631,58.53281105]
[1646573288373,3.10199894,87.669,87.631,58.53281105]
[1646573288867,3.10199894,87.668,87.631,58.53281105]
[1646573289267,64.72865049,87.667,87.631,58.53281105]
[1646573289468,6.24175306,87.666,87.631,58.53281105]
[1646573289668,3.10199894,87.665,87.631,58.53281105]
[1646573290570,3.10199894,87.664,87.631,58.53281105]
[1646573290973,3.10199894,87.665,87.631,58.53281105]